bitfinex/quotes_ETHUSD_20250525
["timestamp","ask_amount","ask_price","bid_price","bid_amount"]
[1748137990468,0.55,2492.2,2491.3,0.7674]
[1748137990653,0.55,2492.2,2491.4,12.014]
[1748137993575,10.25,2492.3,2491.5,0.7674]
[1748137993774,8.0,2492.5,2491.5,0.7674]
[1748137995065,0.55,2492.5,2491.6,0.7674]
[1748137995596,0.395449,2492.8,2491.8,8.0]
[1748137995879,0.02,2492.9,2491.9,0.7674]
[1748137996645,0.02,2492.9,2492.0,12.012]
[1748137996847,2.42,2492.9,2492.0,12.012]
[1748137997067,0.55,2492.8,2492.0,12.012]
[1748137997387,0.55,2492.4,2491.9,0.7674]
[1748137997688,0.55,2492.4,2492.1,18.739]
[1748137997986,0.55,2492.4,2492.1,12.012]
[1748137998295,2.95,2492.4,2491.6,0.7674]
[1748137998463,2.95,2492.4,2491.7,12.012]
[1748137998661,0.55,2492.2,2491.7,12.012]
[1748138000689,0.55,2492.2,2491.6,0.7674]
[1748138000889,0.55,2492.2,2491.7,12.012]
[1748138003094,0.832,2492.9,2491.8,0.8012]
[1748138003275,0.02,2492.9,2492.1,0.8012]
[1748138003853,0.0701473,2492.9,2492.1,0.8012]
[1748138004166,2.42,2492.9,2492.1,0.8012]
[1748138004369,0.55,2492.7,2492.1,0.8012]
[1748138005389,0.55,2492.7,2492.2,12.011]
[1748138007595,0.55,2492.7,2492.3,39.663]
[1748138007792,0.96897425,2492.7,2492.3,15.643]
[1748138007978,0.96897425,2492.7,2492.2,12.011]
[1748138008496,0.55,2492.7,2492.2,12.011]
[1748138009892,0.37254087,2492.8,2492.3,0.809]
[1748138010701,0.02,2492.9,2492.3,0.809]
[1748138012875,0.02,2492.9,2492.5,2.71617437]
[1748138013071,0.02,2492.9,2492.6,0.809]
[1748138013299,0.02,2492.9,2492.6,8.809]
[1748138013485,0.02,2492.9,2492.7,0.809]
[1748138015392,0.02,2492.9,2492.8,12.008]
[1748138017481,0.02,2492.9,2492.8,51.649]
[1748138017870,0.02,2492.9,2492.8,27.635]
[1748138018567,0.02,2492.9,2492.8,12.007]
[1748138022208,0.02,2492.9,2492.8,15.48087437]
[1748138022406,0.02,2492.9,2492.8,3.47387437]
[1748138022715,0.02,2492.9,2492.8,12.7637]
[1748138023510,0.02,2492.9,2492.3,0.7577]
[1748138023707,0.02,2492.9,2492.4,12.006]
[1748138023909,0.02,2492.9,2492.3,0.7577]
[1748138024233,0.57,2492.9,2492.4,12.006]
[1748138024575,0.37287449,2492.8,2492.4,12.006]
[1748138025304,0.94287449,2492.9,2492.4,12.006]
[1748138025534,2.15887194,2492.9,2492.4,12.006]
[1748138026735,1.60887194,2492.9,2492.4,12.006]
[1748138027437,2.4,2492.8,2492.5,6.723]
[1748138027642,1.60887194,2492.9,2492.5,39.638]
[1748138028640,0.39287449,2492.9,2492.4,12.006]
[1748138028849,0.39287449,2492.9,2492.4,12.7637]
[1748138029506,0.39287449,2492.9,2492.5,12.007]
[1748138030204,0.02,2492.9,2492.5,12.007]
[1748138031936,0.02,2492.9,2492.4,0.7577]
[1748138032116,0.7976,2492.8,2492.2,0.7868]
[1748138032438,0.7976,2492.8,2492.5,12.007]
[1748138034948,0.7976,2492.8,2492.2,0.7868]
[1748138035115,0.7976,2492.8,2492.6,12.007]
[1748138035762,0.02,2492.9,2492.6,12.007]
[1748138037458,0.02,2492.9,2492.7,24.014]
[1748138037661,0.02,2492.9,2492.7,39.641]
[1748138038710,0.02,2492.9,2492.2,3.50297437]
[1748138038917,0.02,2492.9,2492.3,12.007]
[1748138040164,0.02,2492.9,2492.4,0.7833]
[1748138042825,0.02,2492.9,2492.6,0.7833]
[1748138046334,0.02,2492.9,2492.6,8.7833]
[1748138046559,0.02,2492.9,2492.6,8.0]
[1748138046766,0.02,2492.9,2492.8,0.7926]
[1748138047143,0.02,2492.9,2492.8,10.71617437]
[1748138047345,0.02,2492.9,2492.8,11.50877437]
[1748138047646,0.02,2492.9,2492.8,51.13377437]
[1748138047959,0.02,2492.9,2492.8,11.50877437]
[1748138048168,0.02,2492.9,2492.8,39.12877437]
[1748138048664,0.02,2492.9,2492.8,8.7926]
[1748138048878,0.02,2492.9,2492.8,20.7986]
[1748138049231,0.02,2492.9,2492.8,23.51477437]
[1748138050081,0.02,2492.9,2492.8,23.51377437]
[1748138050283,0.02,2492.9,2492.8,8.7926]
[1748138050600,0.8297,2492.8,2492.0,1.24777477]
[1748138050809,0.8297,2492.8,2492.1,12.005]
[1748138050941,1.20330399,2492.8,2492.1,12.005]
[1748138051283,0.8297,2492.7,2492.1,12.005]
[1748138051439,0.8297,2492.7,2491.6,0.7692]
[1748138051639,0.8297,2492.7,2491.8,1.41333669]
[1748138051862,0.8297,2492.7,2491.7,12.005]
[1748138052038,0.8297,2492.7,2491.8,12.005]
[1748138052452,0.8297,2492.7,2491.6,2.18253669]
[1748138052656,0.8057,2492.5,2491.6,2.18253669]
[1748138052861,0.8057,2492.5,2491.6,1.41333669]
[1748138053176,0.8057,2492.5,2491.7,12.006]
[1748138053177,0.8057,2492.4,2491.7,12.006]
[1748138054244,0.8057,2492.4,2491.8,12.006]
[1748138055075,1.17929739,2492.4,2491.8,12.006]
[1748138055871,0.8057,2492.4,2491.8,12.006]
[1748138056292,8.0,2492.2,2490.7,3.51322867]
[1748138056499,0.8329,2491.9,2490.7,3.51322867]
[1748138056645,0.88307232,2491.8,2490.8,12.007]
[1748138056981,0.8329,2491.8,2490.8,12.007]
[1748138057186,0.8329,2491.8,2490.7,3.51322867]
[1748138057387,0.8329,2491.8,2490.9,12.007]
[1748138057568,1.80854974,2491.8,2491.0,15.616]
[1748138059675,1.80854974,2491.8,2490.9,12.007]
[1748138060774,0.8329,2491.8,2490.9,12.007]
[1748138061092,0.8329,2491.8,2491.0,2.71422867]
[1748138061263,0.8329,2491.8,2491.1,0.799]
[1748138061465,0.8329,2491.8,2491.1,8.799]
[1748138062793,0.8329,2492.3,2491.1,8.799]
[1748138063450,0.8329,2492.3,2491.2,12.01]
[1748138066083,0.8329,2492.3,2491.3,12.01]
[1748138066851,3.1556,2492.2,2491.3,12.01]
[1748138067188,0.7526,2492.2,2491.3,14.72422867]
[1748138067555,0.7526,2492.2,2491.4,39.642]
[1748138070208,0.7526,2492.2,2491.3,14.72422867]
[1748138071776,0.7526,2492.2,2491.3,12.01]
[1748138072085,0.7526,2492.2,2491.4,12.011]
[1748138074872,3.1556,2492.2,2491.1,1.41380196]
[1748138075107,0.7839,2492.1,2491.2,12.011]
[1748138075316,1.78614651,2492.4,2491.1,1.41380196]
[1748138075317,0.7839,2491.9,2491.1,1.41380196]
[1748138075623,0.7839,2491.9,2491.2,12.011]
[1748138076824,0.7839,2491.9,2491.3,1.41380196]
[1748138077328,0.7839,2491.9,2491.5,1.41380196]
[1748138077493,0.7839,2491.9,2491.6,39.634]
[1748138078013,0.7839,2491.9,2491.6,15.611]
[1748138078215,0.7839,2492.2,2491.5,1.41380196]
[1748138078406,0.7839,2492.2,2491.6,12.011]
[1748138081392,0.7839,2492.2,2491.7,1.41380196]
[1748138082135,0.7586,2492.0,2491.0,1.41380196]
[1748138082333,3.1616,2491.8,2490.7,0.817]
[1748138082531,2.45317044,2491.7,2490.8,1.89237673]
[1748138082696,0.7586,2491.6,2490.9,12.011]
[1748138082903,0.31616,2491.5,2490.9,12.011]
[1748138083101,0.7586,2491.4,2490.9,12.011]
[1748138084340,0.7586,2491.4,2491.0,1.41380196]
[1748138085841,0.7586,2491.4,2490.9,12.011]
[1748138087541,0.7586,2491.4,2491.0,15.612]
[1748138088163,0.7586,2491.4,2490.8,8.0]
[1748138088339,0.7586,2491.4,2491.1,12.012]
[1748138090457,0.7586,2491.4,2490.8,8.0]
[1748138090672,0.7586,2491.4,2491.2,12.012]
[1748138092777,0.7586,2491.4,2490.5,1.20831061]
[1748138092939,0.7586,2491.4,2491.3,12.013]
[1748138093774,0.7632,2491.7,2491.3,12.013]
[1748138094279,0.7632,2491.7,2490.9,3.52583871]
[1748138094488,0.7632,2491.7,2491.0,8.0]
[1748138094679,0.7632,2491.7,2491.1,12.013]
[1748138094879,0.7632,2491.7,2491.1,12.3238927]
[1748138095079,0.7632,2491.7,2491.2,8.0]
[1748138097571,0.7632,2491.7,2491.3,15.613]
[1748138099701,0.7632,2491.7,2491.4,12.012]
[1748138100297,0.8071,2492.2,2491.5,2.71533871]
[1748138100805,0.8071,2492.2,2491.6,12.012]
[1748138101096,0.8071,2492.2,2491.7,12.012]
[1748138101297,0.8071,2492.0,2490.9,3.47953871]
[1748138101464,0.8071,2492.0,2491.0,12.012]
[1748138102501,0.37436492,2491.9,2491.1,8.0]
[1748138102691,0.8071,2491.8,2491.1,8.0]
[1748138102874,0.8071,2491.8,2490.9,3.47953871]
[1748138103078,0.8071,2491.8,2491.0,12.012]
[1748138103869,0.8071,2491.8,2490.6,0.7642]
[1748138104067,0.8071,2491.8,2490.7,12.012]
[1748138104280,0.374441,2491.7,2490.7,12.012]
[1748138104575,0.8071,2491.6,2490.7,12.012]
[1748138104793,0.8071,2491.6,2490.8,12.012]
[1748138104962,0.8071,2491.6,2490.6,0.7642]
[1748138105165,0.8071,2491.6,2490.7,12.012]
[1748138106319,0.8071,2491.6,2490.6,0.7642]
[1748138106467,0.8071,2491.6,2490.8,8.0]
[1748138107005,0.8071,2491.6,2490.4,0.7565]
[1748138107189,0.8071,2491.6,2490.6,8.0]
[1748138107398,0.752,2491.4,2490.6,8.0]
[1748138110099,0.752,2491.4,2490.3,0.39644631]
[1748138110305,0.37450957,2491.3,2490.7,12.013]
[1748138110472,0.8155,2491.2,2490.7,12.013]
[1748138111596,0.8155,2491.2,2490.8,12.013]
[1748138117124,0.7724,2491.8,2490.9,8.0]
[1748138117294,2.67464,2491.8,2490.9,8.0]
[1748138117476,0.7724,2491.8,2491.0,39.631]
[1748138117877,0.7724,2491.8,2490.9,8.0]
[1748138119633,0.7724,2491.8,2490.3,0.95818859]
[1748138119834,20.653,2492.0,2490.6,0.75]
[1748138119835,2.403,2491.9,2490.6,0.75]
[1748138120136,0.7724,2491.7,2490.6,0.75]
[1748138120499,0.7724,2491.7,2490.8,8.0]
[1748138120700,0.7724,2491.7,2490.9,12.013]
[1748138121424,2.0653,2491.8,2490.1,0.49857477]
[1748138121425,1.41457304,2491.4,2490.1,0.49857477]
[1748138121624,0.7724,2491.2,2490.2,12.013]
[1748138121815,0.7724,2491.2,2490.3,0.75]
[1748138122938,0.7724,2491.2,2490.1,1.16622791]
[1748138123258,0.7724,2491.2,2490.4,12.013]
[1748138124238,0.7724,2491.2,2490.5,12.013]
[1748138124439,0.7724,2491.2,2490.2,0.3818821]
[1748138124645,0.7724,2491.2,2490.3,12.013]
[1748138126306,0.7724,2491.2,2490.1,1.16622791]
[1748138126512,0.7724,2491.2,2490.3,8.0]
[1748138127565,0.7724,2491.2,2490.4,39.633]
[1748138128759,0.7724,2491.2,2490.4,15.605]
[1748138130358,0.7724,2491.2,2490.3,8.0]
[1748138130772,0.7724,2491.2,2490.4,0.7863]
[1748138132137,2.01191645,2491.8,2490.5,0.55]
[1748138132368,0.8269,2491.7,2490.5,0.93181159]
[1748138132969,0.8269,2491.7,2490.6,0.8217]
[1748138136293,2.403,2491.0,2490.2,0.47857477]
[1748138136453,0.7573,2490.8,2490.3,12.014]
[1748138136655,0.7573,2490.6,2490.3,12.014]
[1748138136854,0.7573,2491.4,2490.3,12.8225]
[1748138137285,0.7573,2491.4,2490.4,8.0]
[1748138137499,0.7573,2491.4,2490.5,39.623]
[1748138137804,0.7573,2491.4,2490.6,27.609]
[1748138138780,0.7573,2491.4,2490.6,12.014]
[1748138139676,0.7573,2491.4,2490.7,8.0]
[1748138143274,0.7573,2491.4,2490.3,0.8085]
[1748138143471,0.7573,2491.4,2490.5,8.0]
[1748138143967,0.7573,2491.4,2490.3,0.8085]
[1748138144210,0.7573,2491.4,2490.4,12.014]
[1748138144513,0.7573,2491.4,2490.5,12.014]
[1748138144930,0.7573,2491.4,2490.6,12.014]
[1748138147299,0.7573,2491.4,2490.1,0.7946]
[1748138147499,0.7573,2491.4,2490.3,8.0]
[1748138152013,8.0,2491.7,2490.3,8.0]
[1748138152335,0.7615,2491.6,2490.3,8.0]
[1748138154729,0.7615,2491.6,2490.5,0.7565]
[1748138157477,0.7615,2491.6,2490.6,15.595]
[1748138157625,0.7615,2491.6,2490.7,8.0]
[1748138158865,0.7615,2491.6,2490.4,0.55]
[1748138159068,0.7615,2491.6,2490.8,12.014]
[1748138159668,0.7615,2491.6,2490.4,0.55]
[1748138159871,0.7615,2491.6,2490.9,12.014]
[1748138161382,0.7615,2491.6,2491.0,8.0]
[1748138164281,0.7615,2491.6,2491.0,8.40821719]
[1748138167497,0.7615,2491.6,2491.2,8.0]
[1748138167702,0.7615,2491.6,2491.3,12.013]
[1748138170408,0.7748,2491.5,2490.4,0.47857477]
[1748138170617,0.7748,2491.5,2490.5,12.012]
[1748138170907,0.7748,2491.2,2490.4,0.47857477]
[1748138171070,0.7748,2491.2,2490.6,12.012]
[1748138172322,0.7748,2491.2,2490.7,12.012]
[1748138175388,0.7748,2491.2,2490.8,12.013]
[1748138176015,0.7748,2491.2,2490.9,12.014]
[1748138177506,0.7748,2491.2,2491.0,39.644]
[1748138178330,0.7748,2491.2,2491.0,15.616]
[1748138181125,0.7748,2491.2,2490.9,12.014]
[1748138182103,0.774,2491.8,2490.9,12.8022]
[1748138183226,0.774,2491.7,2491.0,12.014]
[1748138184228,0.774,2491.7,2491.1,12.014]
[1748138187509,0.774,2491.7,2491.2,39.644]
[1748138189339,0.774,2491.7,2491.2,15.616]
[1748138191527,0.774,2491.7,2491.3,8.0]
[1748138191699,0.774,2491.7,2491.1,12.014]
[1748138191902,0.8004,2491.3,2490.3,1.23697477]
[1748138192111,0.8004,2491.1,2490.3,0.47857477]
[1748138192534,0.8004,2491.1,2490.4,12.013]
[1748138196110,0.8004,2491.1,2490.1,0.02]
[1748138196310,0.8004,2491.1,2490.3,8.0]
[1748138197551,0.8004,2491.1,2490.5,8.0]
[1748138199929,0.8004,2491.1,2490.4,0.7697]
[1748138202538,0.8004,2491.1,2490.6,8.0]
[1748138203188,0.8004,2491.1,2490.1,0.7897]
[1748138203333,0.8004,2491.1,2490.7,12.015]
[1748138203726,0.7633,2491.1,2490.7,12.015]
[1748138204185,0.7633,2491.1,2490.1,0.7897]
[1748138204343,0.7633,2491.1,2490.2,12.015]
[1748138205762,0.7633,2491.1,2490.1,0.02]
[1748138205973,0.7633,2491.1,2490.3,12.015]
[1748138206666,0.7633,2491.1,2490.1,0.02]
[1748138206866,0.8117,2491.2,2490.2,12.015]
[1748138207083,0.8117,2491.0,2490.1,0.02]
[1748138207251,0.8117,2491.0,2490.2,12.015]
[1748138207453,0.8117,2491.0,2490.3,39.63]
[1748138207851,0.8117,2491.0,2490.1,0.02]
[1748138208238,0.8117,2491.0,2490.2,12.015]
[1748138208439,0.8117,2490.8,2490.2,12.015]
[1748138208640,0.8117,2490.8,2490.1,0.02]
[1748138208979,0.8117,2490.8,2490.2,12.016]
[1748138209341,0.8117,2490.8,2490.3,12.016]
[1748138211379,0.8117,2490.8,2490.4,12.016]
[1748138211583,0.755,2490.6,2490.4,12.016]
[1748138211963,0.755,2490.6,2490.1,0.02]
[1748138212290,0.755,2490.6,2490.2,12.016]
[1748138212980,0.755,2490.6,2490.1,0.02]
[1748138213180,0.05019248,2490.5,2490.1,0.02]
[1748138213341,0.755,2490.4,2490.2,12.016]
[1748138213767,0.80519707,2490.4,2490.2,12.016]
[1748138213969,0.755,2490.4,2490.2,12.016]
[1748138214311,0.755,2490.3,2490.1,0.02]
[1748138214468,1.0708,2490.2,2490.1,0.02]
[1748138214668,1.0708,2490.2,2490.1,12.036]
[1748138215363,0.755,2490.2,2490.1,12.036]
[1748138217703,0.755,2490.2,2490.1,51.673]
[1748138218465,0.755,2490.2,2490.1,27.639]
[1748138219007,1.41575587,2490.6,2490.1,12.036]
[1748138219008,0.7807,2490.6,2490.1,12.036]
[1748138221008,0.7807,2490.6,2490.1,12.8052]
[1748138221204,0.7807,2491.1,2490.1,12.8052]
[1748138221709,0.7807,2491.1,2490.2,0.7692]
[1748138223129,8.0,2491.5,2490.5,0.7993]
[1748138223130,0.8169,2491.5,2490.5,0.7993]
[1748138226202,0.8169,2491.5,2490.6,12.017]
[1748138226399,0.8169,2491.3,2490.7,12.017]
[1748138226710,2.953,2491.4,2490.7,12.017]
[1748138226711,1.19389,2491.2,2490.7,12.017]
[1748138227574,1.19389,2491.2,2490.8,39.634]
[1748138228772,1.19389,2491.2,2490.9,27.617]
[1748138229114,1.19389,2491.2,2490.9,12.016]
[1748138229991,0.8169,2491.2,2490.9,12.016]
[1748138231512,0.7644,2491.4,2490.9,12.016]
[1748138231815,8.0,2491.3,2490.9,12.016]
[1748138232200,11.0144,2491.6,2491.0,0.8143]
[1748138235721,11.0144,2491.6,2490.9,12.016]
[1748138236622,11.0144,2491.6,2490.8,0.7931]
[1748138236799,11.0144,2491.6,2490.9,12.015]
[1748138237723,11.0144,2491.6,2491.0,39.63]
[1748138237882,3.1807,2491.5,2491.1,15.6]
[1748138238091,0.7777,2491.3,2490.5,0.7931]
[1748138238406,0.05018039,2491.2,2490.6,12.015]
[1748138238729,2.403,2490.9,2490.1,0.02]
[1748138238887,3.55377,2490.8,2490.2,12.015]
[1748138239085,3.55377,2490.8,2490.1,0.02]
[1748138239423,0.7777,2490.5,2490.3,12.015]
[1748138241181,2.71532434,2491.0,2490.3,12.015]
[1748138241182,0.7898,2491.0,2490.3,12.015]
[1748138242425,0.7898,2491.0,2490.1,0.8436]
[1748138242612,2.17485399,2491.0,2490.2,12.015]
[1748138244427,2.17485399,2491.0,2490.3,12.016]
[1748138244725,4.57785399,2491.0,2490.1,0.8436]
[1748138245229,4.57785399,2491.0,2490.2,12.016]
[1748138245625,0.777,2490.7,2490.3,12.016]
[1748138245926,1.15,2490.7,2490.4,12.016]
[1748138247531,1.15,2490.7,2490.5,39.635]
[1748138247731,1.15,2490.7,2490.6,27.62]
[1748138249321,0.777,2490.7,2490.6,27.62]
[1748138249526,0.777,2490.9,2490.6,12.017]
[1748138250035,2.403,2491.0,2490.6,12.017]
[1748138250336,0.777,2491.4,2490.7,0.7796]
[1748138250700,0.428144,2491.3,2490.7,0.7796]
[1748138250893,0.777,2491.4,2490.7,0.7796]
[1748138254058,0.05017969,2491.3,2490.7,0.7796]
[1748138254766,0.05017969,2491.3,2490.8,12.017]
[1748138255064,0.777,2491.4,2490.8,12.017]
[1748138255447,0.777,2491.4,2490.7,0.7796]
[1748138255655,0.48334169,2491.3,2490.9,12.017]
[1748138256153,0.43316197,2491.3,2490.9,12.017]
[1748138257566,0.43316197,2491.3,2491.0,39.632]
[1748138257766,0.43316197,2491.3,2491.0,15.599]
[1748138258073,3.187,2491.1,2490.3,0.7551]
[1748138258255,3.187,2491.1,2490.4,12.016]
[1748138259375,0.784,2491.1,2490.4,12.016]
[1748138259578,0.43316197,2491.3,2490.4,12.016]
[1748138259782,4.76284319,2491.5,2490.5,0.75]
[1748138259783,1.72827885,2491.5,2490.5,0.75]
[1748138260480,2.403,2491.4,2490.5,0.75]
[1748138260643,10.25,2491.6,2490.5,0.75]
[1748138261896,10.25,2491.7,2490.5,0.75]
[1748138262178,10.25,2491.7,2490.7,0.75]
[1748138267472,10.25,2491.7,2490.9,0.8269]
[1748138267676,0.7822,2492.2,2490.9,0.8269]
[1748138269458,0.7822,2492.2,2491.0,12.013]
[1748138269657,0.7822,2492.2,2491.1,8.0]
[1748138269858,0.7822,2492.2,2491.2,0.8286]
[1748138273723,2.19606359,2492.2,2491.2,0.8286]
[1748138276870,2.403,2492.1,2491.2,0.8286]
[1748138277067,2.19606359,2492.2,2491.2,0.7567]
[1748138277509,2.19606359,2492.2,2491.4,0.7567]
[1748138277680,1.41386359,2492.2,2491.4,0.7567]
[1748138278008,2.403,2492.3,2491.4,0.7567]
[1748138278706,2.20706359,2492.4,2491.4,0.7567]
[1748138278882,1.48600636,2492.3,2491.4,0.7567]
[1748138280792,1.4640249,2492.2,2491.5,12.012]
[1748138280997,1.41386359,2492.2,2491.5,12.012]
[1748138282223,1.48600636,2492.3,2491.6,0.7567]
[1748138282424,1.41386359,2492.1,2491.6,0.7567]
[1748138282754,0.05015869,2492.2,2490.5,0.7567]
[1748138282755,1.41386359,2491.7,2490.5,0.7567]
[1748138282895,1.41386359,2491.7,2490.7,0.7567]
[1748138283095,0.05017402,2491.9,2490.7,0.7567]
[1748138283096,4.61006359,2491.5,2490.7,0.7567]
[1748138283294,4.61006359,2491.5,2490.8,12.012]
[1748138283690,2.20706359,2491.7,2490.9,0.7567]
[1748138283894,2.20706359,2491.9,2490.9,0.7567]
[1748138284096,9.02070636,2491.8,2491.0,0.7567]
[1748138284739,1.02070636,2491.8,2491.0,0.7567]
[1748138285235,10.403,2492.0,2491.0,0.7567]
[1748138285742,2.403,2492.0,2491.0,0.7567]
[1748138286095,10.25,2492.1,2491.0,0.7567]
[1748138287554,10.25,2492.1,2491.2,0.8155]
[1748138287755,11.647387,2492.1,2491.2,0.8155]
[1748138288556,1.41386359,2492.0,2491.2,0.8155]
[1748138288787,1.41386359,2492.0,2491.3,12.012]
[1748138289856,1.41386359,2492.0,2491.2,0.8155]
[1748138290552,1.41386359,2492.0,2491.3,12.012]
[1748138290739,1.54642506,2491.9,2491.3,12.012]
[1748138291216,1.54642506,2491.9,2491.2,0.8155]
[1748138291424,1.54642506,2491.9,2491.3,12.012]
[1748138292882,1.54642506,2491.9,2491.2,0.8155]
[1748138293039,1.54642506,2491.9,2491.3,12.012]
[1748138293971,0.29602886,2491.8,2491.4,12.012]
[1748138294172,0.29602886,2491.8,2491.2,0.8155]
[1748138294381,0.29602886,2491.8,2491.5,12.012]
[1748138297629,0.29602886,2491.8,2491.6,39.611]
[1748138298185,0.29602886,2491.8,2491.6,15.586]
[1748138300077,3.81686359,2491.7,2490.5,0.827]
[1748138300232,1.16388925,2491.6,2490.6,12.012]
[1748138300419,1.16388925,2491.6,2490.7,8.0]
[1748138300589,1.4640397,2491.5,2490.7,8.0]
[1748138300790,1.4640397,2491.5,2490.6,12.012]
[1748138300988,0.2627929,2491.4,2490.6,12.012]
[1748138303728,0.7526,2491.3,2490.7,12.013]
[1748138303928,4.56946359,2491.3,2490.5,0.827]
[1748138304319,4.56946359,2491.3,2490.6,12.013]
[1748138304520,0.48322565,2491.2,2490.6,12.013]
[1748138305131,0.48322565,2491.2,2490.5,0.827]
[1748138305497,0.48322565,2491.2,2490.6,12.013]
[1748138306194,0.48322565,2491.2,2490.7,12.014]
[1748138306716,0.48322565,2491.2,2490.8,12.014]
[1748138306893,0.50526892,2491.1,2490.8,12.014]
[1748138307650,0.50526892,2491.1,2490.9,39.618]
[1748138308858,12.26191645,2491.8,2490.9,16.3577]
[1748138309155,12.26191645,2491.8,2491.0,0.7687]
[1748138310578,12.26191645,2491.8,2491.1,12.014]
[1748138312081,10.25,2491.8,2491.1,12.014]
[1748138312781,11.0289,2491.9,2491.2,8.7542]
[1748138316800,11.0289,2491.9,2491.3,12.013]
[1748138317487,11.0289,2491.9,2491.4,39.601]
[1748138317786,11.0289,2491.9,2491.4,15.575]
[1748138319887,11.0289,2491.9,2491.3,12.013]
[1748138322395,11.0289,2491.9,2491.4,12.013]
[1748138322596,1.10289,2491.8,2491.4,12.013]
[1748138324571,1.10289,2491.8,2491.2,0.7542]
[1748138324869,0.8306,2491.5,2490.6,0.7821]
[1748138325074,0.8306,2491.5,2490.7,12.013]
[1748138325298,0.8306,2491.5,2490.8,0.7821]
[1748138327631,0.8306,2491.5,2490.9,39.601]
[1748138329436,0.05017537,2491.4,2490.6,0.7821]
[1748138329732,3.2336,2491.5,2490.7,12.013]
[1748138329938,3.2336,2491.5,2490.6,0.7821]
[1748138330107,0.8306,2491.1,2490.7,12.013]
[1748138330327,0.8306,2491.1,2490.8,12.013]
[1748138334066,0.8306,2491.1,2490.2,0.7821]
[1748138334356,0.88078695,2491.1,2490.3,12.014]
[1748138334649,0.88078695,2491.1,2490.4,12.015]
[1748138334860,0.51051664,2491.0,2490.4,12.015]
[1748138335050,0.51051664,2491.0,2490.5,12.015]
[1748138335259,0.51051664,2491.0,2490.6,12.015]
[1748138335460,0.51051664,2491.0,2490.2,0.7821]
[1748138335461,0.05018693,2490.9,2490.2,0.7821]
[1748138335833,0.831,2490.8,2490.3,12.015]
[1748138336029,0.3234,2490.7,2490.3,12.015]
[1748138336969,0.3234,2490.7,2490.1,0.02]
[1748138337268,0.3234,2490.7,2490.4,12.015]
[1748138337467,0.3234,2490.7,2490.5,27.593]
[1748138337651,0.3234,2490.7,2490.1,0.02]
[1748138337858,0.3234,2490.7,2490.2,12.015]
[1748138338274,0.3234,2490.7,2490.3,12.015]
[1748138338456,0.3234,2490.7,2490.4,12.015]
[1748138338774,0.3234,2490.7,2490.5,12.016]
[1748138338937,0.3234,2490.7,2490.1,0.02]
[1748138339131,0.3234,2490.7,2490.2,12.016]
[1748138339559,0.3234,2490.7,2490.1,0.02]
[1748138339875,3.1976,2490.5,2490.2,12.016]
[1748138340076,0.46114636,2490.4,2490.2,12.016]
[1748138340473,11.368,2490.7,2490.2,12.016]
[1748138340660,10.25,2490.7,2490.3,0.8128]
[1748138341854,10.25,2490.7,2490.4,12.017]
[1748138343179,10.25,2490.7,2490.3,0.8128]
[1748138343376,0.8241,2490.6,2490.1,0.02]
[1748138343596,1.34771,2490.5,2490.2,12.017]
[1748138343751,0.8241,2490.6,2490.2,12.017]
[1748138347197,10.25,2490.7,2490.2,12.8035]
[1748138347561,10.25,2490.7,2490.3,39.606]
[1748138347794,10.25,2490.7,2490.3,15.57]
[1748138347993,10.25,2490.7,2490.2,12.8035]
[1748138348495,10.25,2490.7,2490.2,12.017]
[1748138348681,0.7667,2491.2,2490.3,0.7865]
[1748138350502,3.1697,2491.4,2490.3,0.7865]
[1748138350897,0.7667,2491.4,2490.3,0.7865]
[1748138351519,14.83356359,2491.6,2490.3,0.7865]
[1748138351709,16.31691995,2491.6,2490.3,0.7865]
[1748138352840,16.31691995,2491.6,2490.4,0.7865]
[1748138354603,16.31691995,2491.6,2490.6,8.0]
[1748138355934,0.05017944,2491.5,2490.7,12.016]
[1748138356234,1.63670994,2491.5,2490.8,12.016]
[1748138356434,1.68688937,2491.5,2490.8,12.016]
[1748138356799,1.63670994,2491.5,2490.9,12.016]
[1748138356999,1.63670994,2491.5,2490.5,0.7865]
[1748138357211,1.63670994,2491.5,2490.6,12.016]
[1748138357528,10.25,2491.6,2490.8,0.7865]
[1748138358100,1.46403541,2491.5,2490.9,12.016]
[1748138358338,1.41386359,2491.5,2490.9,12.016]
[1748138358832,1.41386359,2491.5,2491.0,12.015]
[1748138359206,14.83456359,2491.6,2491.0,12.015]
[1748138359402,1.48345636,2491.5,2491.0,12.015]
[1748138359926,1.48345636,2491.5,2490.8,0.7865]
[1748138360125,4.58786359,2491.4,2490.9,12.015]
[1748138360338,4.58786359,2491.4,2491.0,12.015]
[1748138360540,4.58786359,2491.4,2490.6,0.8248]
[1748138360856,0.607132,2491.3,2490.7,12.015]
[1748138361235,0.607132,2491.3,2490.6,0.8248]